{"text_format":"3","workbook":"xlsx","n_sheets":2,"sheets":["Списък на учителя"," Данни в списъка"],"not_rendered":{"defined_names":6},"read":"whole","date_system":"1900"}

{"sheet":"Списък на учителя","index":0,"n_rows":10,"n_cols":10,"rows_kept":10,"merged":[[0,1,0,2],[0,4,0,8],[2,9,6,9]]}
[null,"Списък на учителя",null,"Данни в списъка","В тази клетка се намира цветовата легенда за състоянието: \"Не е започната\" е в нормален стил, \"Изпълнява се\" е R=91 G=133 B=49, \"Срок, изтичащ днес\" е R=118 G=88 B=0, \"Задържана\" е R=109 G=66 B=111, \"Завършена\" е със зачертаване, \"Отменена\" е R=191 G=191 B=191 и \"Просрочена\" е R=191 G=33 B=28."]
[null,"ЕЛЕМЕНТ","КАТЕГОРИЯ","НАЧАЛНА ДАТА","КРАЕН СРОК","ОСТАВАЩИ ДНИ","СЪСТОЯНИЕ","БЕЛЕЖКИ"]
[null,"Изчистване на чекмеджетата","Офис",{"$f":"DATE(YEAR(TODAY()),MONTH(TODAY())-1,6)","v":"2018-04-06"},{"$f":"DATE(YEAR(TODAY()),MONTH(TODAY())-1,16)","v":"2018-04-16"},{"$f":"IFERROR(IF(COUNT(Списък[[#This Row],[НАЧАЛНА ДАТА]]:Списък[[#This Row],[КРАЕН СРОК]])<>2,\"\",IF(OR(Списък[[#This Row],[СЪСТОЯНИЕ]]=\"Завършена\",Списък[[#This Row],[СЪСТОЯНИЕ]]=\"Отменена\",Списък[[#This Row],[СЪСТОЯНИЕ]]=\"Задържана\"),\"\",Списък[[#This Row],[КРАЕН СРОК]]-TODAY())),\"\")","v":""},"Завършена",null,null,"Сегментаторът по състояние се намира в тази клетка. За да филтрирате списъка по състояние, изберете състояние от сегментатора. Натиснете и задръжте CTRL, за да изберете няколко опции."]
[null,"Подреждане на стикерите","Консумативи",{"$f":"DATE(YEAR(TODAY()),MONTH(TODAY())-1,11)","v":"2018-04-11"},{"$f":"DATE(YEAR(TODAY()),MONTH(TODAY())-1,21)","v":"2018-04-21"},{"$f":"IFERROR(IF(COUNT(Списък[[#This Row],[НАЧАЛНА ДАТА]]:Списък[[#This Row],[КРАЕН СРОК]])<>2,\"\",IF(OR(Списък[[#This Row],[СЪСТОЯНИЕ]]=\"Завършена\",Списък[[#This Row],[СЪСТОЯНИЕ]]=\"Отменена\",Списък[[#This Row],[СЪСТОЯНИЕ]]=\"Задържана\"),\"\",Списък[[#This Row],[КРАЕН СРОК]]-TODAY())),\"\")","v":""},"Завършена"]
[null,"Измиване и полиране на подовете","Други",{"$f":"DATE(YEAR(TODAY()),MONTH(TODAY()-1),DAY(TODAY())-25)","v":"2018-04-14"},{"$f":"DATE(YEAR(TODAY()),MONTH(TODAY())-1,26)","v":"2018-04-26"},{"$f":"IFERROR(IF(COUNT(Списък[[#This Row],[НАЧАЛНА ДАТА]]:Списък[[#This Row],[КРАЕН СРОК]])<>2,\"\",IF(OR(Списък[[#This Row],[СЪСТОЯНИЕ]]=\"Завършена\",Списък[[#This Row],[СЪСТОЯНИЕ]]=\"Отменена\",Списък[[#This Row],[СЪСТОЯНИЕ]]=\"Задържана\"),\"\",Списък[[#This Row],[КРАЕН СРОК]]-TODAY())),\"\")","v":""},"Завършена"]
[null,"Създадени етикети с имена","Консумативи",{"$f":"DATE(YEAR(TODAY()),MONTH(TODAY())-1,21)","v":"2018-04-21"},{"$f":"DATE(YEAR(TODAY()),MONTH(TODAY())-1,1)","v":"2018-04-01"},{"$f":"IFERROR(IF(COUNT(Списък[[#This Row],[НАЧАЛНА ДАТА]]:Списък[[#This Row],[КРАЕН СРОК]])<>2,\"\",IF(OR(Списък[[#This Row],[СЪСТОЯНИЕ]]=\"Завършена\",Списък[[#This Row],[СЪСТОЯНИЕ]]=\"Отменена\",Списък[[#This Row],[СЪСТОЯНИЕ]]=\"Задържана\"),\"\",Списък[[#This Row],[КРАЕН СРОК]]-TODAY())),\"\")","v":""},"Задържана"]
[null,"Оценяване на тримесечните писмени доклади","Оценки",{"$f":"DATE(YEAR(TODAY()),MONTH(TODAY())-1,26)","v":"2018-04-26"},{"$f":"TODAY()-5","v":"2018-05-04"},{"$f":"IFERROR(IF(COUNT(Списък[[#This Row],[НАЧАЛНА ДАТА]]:Списък[[#This Row],[КРАЕН СРОК]])<>2,\"\",IF(OR(Списък[[#This Row],[СЪСТОЯНИЕ]]=\"Завършена\",Списък[[#This Row],[СЪСТОЯНИЕ]]=\"Отменена\",Списък[[#This Row],[СЪСТОЯНИЕ]]=\"Задържана\"),\"\",Списък[[#This Row],[КРАЕН СРОК]]-TODAY())),\"\")","v":-5},"Просрочена"]
[null,"Имейл с напомняне за разрешенията","Телефонни обаждания",{"$f":"DATE(YEAR(TODAY()),MONTH(TODAY()),1)","v":"2018-05-01"},{"$f":"TODAY()","v":"2018-05-09"},{"$f":"IFERROR(IF(COUNT(Списък[[#This Row],[НАЧАЛНА ДАТА]]:Списък[[#This Row],[КРАЕН СРОК]])<>2,\"\",IF(OR(Списък[[#This Row],[СЪСТОЯНИЕ]]=\"Завършена\",Списък[[#This Row],[СЪСТОЯНИЕ]]=\"Отменена\",Списък[[#This Row],[СЪСТОЯНИЕ]]=\"Задържана\"),\"\",Списък[[#This Row],[КРАЕН СРОК]]-TODAY())),\"\")","v":""},"Отменена"]
[null,"Оценяване на устните доклади","Офис",{"$f":"DATE(YEAR(TODAY()),MONTH(TODAY()),7)","v":"2018-05-07"},{"$f":"DATE(YEAR(TODAY()),MONTH(TODAY()),17)","v":"2018-05-17"},{"$f":"IFERROR(IF(COUNT(Списък[[#This Row],[НАЧАЛНА ДАТА]]:Списък[[#This Row],[КРАЕН СРОК]])<>2,\"\",IF(OR(Списък[[#This Row],[СЪСТОЯНИЕ]]=\"Завършена\",Списък[[#This Row],[СЪСТОЯНИЕ]]=\"Отменена\",Списък[[#This Row],[СЪСТОЯНИЕ]]=\"Задържана\"),\"\",Списък[[#This Row],[КРАЕН СРОК]]-TODAY())),\"\")","v":8},"Изпълнява се"]
[null,"Подостряне на моливите","Консумативи",{"$f":"DATE(YEAR(TODAY()),MONTH(TODAY()),11)","v":"2018-05-11"},{"$f":"DATE(YEAR(TODAY()),MONTH(TODAY()),10)","v":"2018-05-10"},{"$f":"IFERROR(IF(COUNT(Списък[[#This Row],[НАЧАЛНА ДАТА]]:Списък[[#This Row],[КРАЕН СРОК]])<>2,\"\",IF(OR(Списък[[#This Row],[СЪСТОЯНИЕ]]=\"Завършена\",Списък[[#This Row],[СЪСТОЯНИЕ]]=\"Отменена\",Списък[[#This Row],[СЪСТОЯНИЕ]]=\"Задържана\"),\"\",Списък[[#This Row],[КРАЕН СРОК]]-TODAY())),\"\")","v":1},"Изпълнява се"]

{"sheet":" Данни в списъка","index":1,"n_rows":13,"n_cols":3,"rows_kept":13}
[null,"Данни в списъка","Списък на учителя"]
[null,"Категория"]
[null,"Офис"]
[null,"Консумативи"]
[null,"Неща за купуване"]
[null,"Телефонни обаждания"]
[null,"Нови идеи"]
[null,"Оценки"]
[null,"Екип"]
[null,"Интервенции"]
[null,"Компютър"]
[null,"Лични"]
[null,"Други"]